bitfinex/quotes_ETHUSD_20250508
["timestamp","ask_amount","ask_price","bid_price","bid_amount"]
[1746676162763,5.29531709,1888.5,1888.4,8.562]
[1746676162965,5.2950849,1888.6,1888.3,9.3121]
[1746676163149,10.58971565,1888.7,1888.3,9.3121]
[1746676163346,5.29504666,1888.6,1888.3,0.7501]
[1746676163670,5.29201535,1889.7,1888.3,0.7501]
[1746676163671,0.7673,1890.1,1889.3,0.8079]
[1746676163986,5.29144992,1889.9,1889.4,5.2926363]
[1746676164150,5.29149919,1889.9,1889.4,5.29267355]
[1746676164348,5.29149919,1889.9,1889.5,5.2923737]
[1746676164575,5.29115986,1890.0,1889.5,0.05291887]
[1746676164750,5.2922563,1889.6,1889.3,0.8079]
[1746676164935,5.29116915,1890.0,1889.4,5.89533401]
[1746676165135,0.7673,1890.4,1889.6,0.55]
[1746676165365,0.8114,1890.7,1889.5,0.55]
[1746676165638,5.29113504,1890.0,1889.5,5.29225426]
[1746676165867,10.58187276,1890.1,1889.6,5.29200699]
[1746676166071,5.28988573,1890.4,1889.6,5.29200699]
[1746676166370,5.29094739,1890.1,1889.6,5.29200699]
[1746676166570,5.29094739,1890.1,1889.4,0.55]
[1746676166752,5.29094739,1890.1,1889.7,0.8132]
[1746676166949,5.29118889,1890.0,1889.7,0.8132]
[1746676167277,5.29091132,1890.1,1889.7,0.8132]
[1746676167899,5.29056935,1890.2,1889.8,5.29156119]
[1746676168193,5.29033407,1890.3,1889.8,5.29137876]
[1746676168361,5.29033407,1890.3,1889.9,5.29116647]
[1746676168561,5.29002386,1890.4,1889.9,5.29116647]
[1746676168755,5.29002386,1890.4,1890.0,5.29098013]
[1746676168990,5.29017378,1890.3,1889.8,5.8414164]
[1746676169175,5.29045015,1890.2,1889.8,5.8414164]
[1746676169379,5.29106778,1890.0,1889.7,9.3712]
[1746676169602,5.2908683,1890.1,1889.7,9.3712]
[1746676169766,17.60378676,1890.9,1889.7,9.3712]
[1746676169957,5.29033442,1890.3,1889.8,5.29154705]
[1746676170363,5.28931193,1890.7,1890.0,0.8308]
[1746676170698,5.28894476,1890.8,1890.4,0.7723]
[1746676170887,5.28960592,1890.5,1890.4,0.7723]
[1746676172597,5.28918903,1890.7,1890.4,0.7723]
[1746676172797,5.2895023,1890.6,1890.4,0.7723]
[1746676173109,5.28921206,1890.7,1890.4,0.7723]
[1746676173311,5.28904826,1890.7,1890.4,0.7723]
[1746676173531,6.05145681,1891.5,1890.6,5.28908432]
[1746676173829,5.28781645,1891.2,1890.8,0.55]
[1746676173967,5.2860585,1891.8,1890.8,0.55]
[1746676174169,5.28844352,1891.0,1890.6,0.769]
[1746676174382,5.28892951,1890.8,1890.6,0.769]
[1746676174610,5.28733404,1891.4,1890.3,5.29000696]
[1746676174611,5.28988573,1890.4,1890.3,0.769]
[1746676174913,5.28947744,1890.6,1890.3,0.769]
[1746676176014,5.28916522,1890.7,1890.3,0.769]
[1746676176165,5.28944835,1890.6,1890.3,0.769]
[1746676176368,5.2881943,1891.1,1890.3,0.769]
[1746676176369,5.28961314,1890.5,1890.3,0.769]
[1746676176777,5.28893946,1890.8,1890.3,0.769]
[1746676176975,5.28893946,1890.8,1890.3,6.05915627]
[1746676177199,5.28864086,1890.9,1890.4,5.34273007]
[1746676177702,5.28917477,1890.7,1890.3,1.38020548]
[1746676177881,5.28917477,1890.7,1890.3,0.769]
[1746676178285,6.58093845,1891.3,1890.4,0.55]
[1746676178487,5.28866952,1890.9,1890.4,5.83975027]
[1746676178683,5.28866952,1890.9,1890.4,11.12939938]
[1746676178893,5.28866952,1890.9,1890.5,5.34249562]
[1746676179098,5.28886428,1890.8,1890.5,0.0528901]
[1746676179275,5.28976101,1890.5,1890.3,0.769]
[1746676179477,5.28988573,1890.4,1890.3,0.769]
[1746676179907,5.28822049,1891.0,1890.3,0.769]
[1746676180102,5.28923101,1890.7,1890.3,6.05916375]
[1746676180304,5.28950923,1890.6,1890.3,0.769]
[1746676180819,5.28923101,1890.7,1890.3,0.769]
[1746676180820,5.28988573,1890.4,1890.3,0.769]
[1746676181547,5.28978146,1890.5,1890.3,0.769]
[1746676181821,5.28948664,1890.6,1890.3,0.769]
[1746676182588,5.28961446,1890.5,1890.3,0.769]
[1746676182818,5.28988573,1890.4,1890.3,0.769]
[1746676183029,5.29077982,1890.1,1890.0,0.8079]
[1746676183231,5.29128525,1889.9,1889.7,19.8719]
[1746676183537,5.29149351,1889.9,1889.7,0.8079]
[1746676183718,5.29100529,1890.0,1888.8,0.7558]
[1746676183887,8.288,1890.1,1888.9,6.10278689]
[1746676184086,5.28984535,1890.5,1889.5,5.29223601]
[1746676184287,5.29084697,1890.1,1889.7,0.55]
[1746676184613,5.28988573,1890.4,1889.6,5.29198374]
[1746676184813,5.2908736,1890.1,1889.7,0.05291323]
[1746676185015,5.2908736,1890.1,1889.6,5.29198374]
[1746676185216,5.28988573,1890.4,1889.8,5.29145296]
[1746676185510,5.29038189,1890.3,1889.7,6.06099917]
[1746676185713,5.29067784,1890.2,1889.7,0.7693]
[1746676186034,5.29072535,1890.1,1889.7,0.7693]
[1746676186526,5.29102506,1890.0,1889.7,0.7693]
[1746676187113,10.58229076,1890.0,1889.7,0.7693]
[1746676187428,5.29156524,1889.8,1889.7,0.7693]
[1746676187592,5.2907508,1890.1,1889.4,0.7728]
[1746676187799,5.29139307,1889.9,1889.5,5.29239749]
[1746676188024,5.82017891,1890.0,1889.5,5.29239749]
[1746676188025,5.29125951,1890.0,1889.5,5.29239749]
[1746676188395,5.29133137,1889.9,1889.5,5.3453163]
[1746676188594,5.29125951,1890.0,1889.5,5.3453163]
[1746676188829,5.29041753,1890.3,1889.4,0.7728]
[1746676189130,5.29197195,1889.7,1889.4,0.7728]
[1746676189330,5.29128525,1889.9,1889.4,0.7728]
[1746676189496,5.29240539,1889.5,1889.1,9.0893]
[1746676189697,5.2921673,1889.6,1889.1,0.8003]
[1746676190015,5.29324581,1889.2,1889.1,0.8003]
[1746676190217,0.8104,1889.4,1888.6,5.29467317]
[1746676190441,5.29364786,1889.1,1888.7,0.52946732]
[1746676190595,6.1032699,1889.4,1888.4,0.8003]
[1746676190800,5.29491593,1888.7,1888.4,0.8003]
[1746676190996,5.2940865,1888.9,1888.1,5.29621045]
[1746676191234,5.29448735,1888.8,1888.2,0.05295722]
[1746676191543,5.29405092,1889.0,1888.5,5.29508431]
[1746676191696,5.29405092,1889.0,1888.5,6.43466754]
[1746676192096,5.29366448,1889.1,1888.6,5.34781405]
[1746676192293,5.29366448,1889.1,1888.7,5.2946446]
[1746676192528,5.2941354,1888.9,1888.4,6.10063597]
[1746676192738,5.29447914,1888.8,1888.4,0.8054]
[1746676192923,5.29467816,1888.7,1888.4,0.8054]
[1746676193118,5.29464711,1888.7,1888.1,8.291]
[1746676193321,5.23840547,1888.4,1888.1,9.1201]
[1746676193501,5.23840547,1888.4,1888.1,0.8291]
[1746676194202,5.29538127,1888.5,1888.1,0.8291]
[1746676194435,5.29538127,1888.5,1888.0,5.29657311]
[1746676194935,5.29478951,1888.7,1888.2,5.29589463]
[1746676195295,5.29478951,1888.7,1888.2,5.29588267]
[1746676195616,5.29478951,1888.7,1888.2,5.84588267]
[1746676195822,5.29464863,1888.7,1888.4,0.8079]
[1746676196607,5.29464863,1888.7,1887.5,0.7662]
[1746676196608,5.29548824,1888.4,1887.5,0.7662]
[1746676196914,14.07445994,1888.6,1887.6,0.05296879]
[1746676197121,0.7643,1888.6,1887.8,5.29706162]
[1746676197308,5.29594085,1888.3,1887.7,5.29728188]
[1746676197512,5.29647459,1888.1,1887.6,5.29766132]
[1746676197710,5.29707047,1887.9,1887.5,6.06420118]
[1746676197920,5.2968474,1888.0,1887.5,6.06407137]
[1746676198236,5.29689871,1887.9,1887.5,6.06407137]
[1746676198443,5.29620075,1888.2,1887.7,5.29722316]
[1746676198614,5.29583038,1888.3,1887.8,5.2969603]
[1746676198813,5.29603398,1888.3,1887.8,5.2969603]
[1746676199050,5.29603398,1888.3,1887.8,6.04309912]
[1746676199226,5.29603398,1888.3,1887.8,6.09606274]
[1746676199421,5.29632515,1888.2,1887.7,5.29732965]
[1746676199943,5.2963082,1888.2,1887.6,5.29758718]
[1746676200159,5.29643429,1888.1,1887.6,10.64808311]
[1746676200325,5.29643429,1888.1,1887.7,5.29739647]
[1746676200646,5.29620327,1888.2,1887.8,5.29715655]
[1746676200838,5.29620327,1888.2,1887.7,5.29727724]
[1746676201023,5.29620327,1888.2,1887.7,10.59452521]
[1746676201231,5.29596295,1888.3,1887.8,5.34999739]
[1746676201416,5.2960853,1888.2,1887.8,5.29702986]
[1746676201854,5.29639164,1888.1,1887.5,0.7662]
[1746676202019,5.29730741,1887.8,1887.5,0.7662]
[1746676202220,5.2955148,1888.4,1887.6,5.35047038]
[1746676202523,5.29649593,1888.1,1887.7,5.29743969]
[1746676203070,5.29576868,1888.3,1887.5,0.7662]
[1746676203359,5.29701759,1887.9,1887.5,0.7662]
[1746676204366,5.29701759,1887.9,1887.4,13.31610457]
[1746676204367,5.29764469,1887.7,1887.2,0.7712]
[1746676204527,5.29775413,1887.6,1887.2,0.7712]
[1746676204720,5.29786272,1887.6,1887.2,0.7712]
[1746676205491,5.29611041,1888.2,1887.2,0.7712]
[1746676205492,5.564,1889.5,1887.4,3.7998]
[1746676205814,0.786,1890.4,1889.8,0.7998]
[1746676206589,0.786,1890.4,1889.6,5.29211133]
[1746676206789,11.47538215,1890.8,1889.8,5.2913062]
[1746676206790,6.06276308,1890.7,1889.8,5.2913062]
[1746676206978,5.28990922,1890.4,1889.6,5.34490135]
[1746676207188,5.81890014,1890.4,1889.7,5.29177226]
[1746676207366,0.52899092,1890.4,1889.8,5.29156189]
[1746676207695,0.52899092,1890.4,1889.8,5.29155068]
[1746676207896,0.52899092,1890.4,1889.7,5.2917374]
[1746676208402,5.81889758,1890.4,1889.7,5.2917374]
[1746676208599,5.87206747,1890.3,1889.6,5.29198739]
[1746676208902,6.07780949,1890.1,1889.5,8.8188]
[1746676209399,6.07776026,1890.1,1889.5,6.09218002]
[1746676209698,0.7869,1890.1,1889.5,6.09218002]
[1746676210298,0.7869,1890.1,1889.6,5.29184907]
[1746676210476,0.7869,1890.1,1889.5,6.09204912]
[1746676210679,0.7869,1890.1,1889.6,5.29208189]
[1746676210888,1.39463698,1890.1,1889.6,5.29208189]
[1746676211090,6.6853916,1890.1,1889.5,6.0920609]
[1746676211596,6.6853916,1890.1,1889.2,8.8089]
[1746676211597,6.68543741,1890.1,1889.2,8.8089]
[1746676211895,5.29170308,1889.8,1889.2,0.7929]
[1746676212098,5.8209835,1889.8,1889.2,0.7929]
[1746676212278,5.8209835,1889.8,1888.5,8.7515657]
[1746676212279,5.2932457,1889.3,1888.7,5.29451525]
[1746676212462,5.2932457,1889.3,1888.7,10.58891897]
[1746676212869,5.29322198,1889.3,1888.7,5.2944873]
[1746676213071,0.5293222,1889.2,1888.7,5.2944873]
[1746676213290,5.29280363,1889.4,1888.7,5.29456525]
[1746676213477,5.29197363,1889.7,1889.1,5.29335117]
[1746676213806,5.29197363,1889.7,1889.2,5.29322617]
[1746676214100,5.2921319,1889.6,1889.1,5.29341613]
[1746676214276,5.29206423,1889.7,1889.1,5.29334844]
[1746676214471,5.29212531,1889.6,1889.0,5.29366434]
[1746676214697,5.95445849,1889.7,1889.1,5.29335957]
[1746676214872,5.95439603,1889.7,1888.8,5.29436679]
[1746676215078,5.95439603,1889.7,1889.1,5.29329041]
[1746676215278,5.95439603,1889.7,1889.2,5.29324022]
[1746676215576,6.09447347,1889.8,1889.3,5.29275807]
[1746676216099,6.09447347,1889.8,1889.1,6.12550616]
[1746676216100,6.7003842,1890.1,1889.6,5.2920624]
[1746676216261,0.8017,1890.1,1889.4,5.29264046]
[1746676216594,5.29100529,1890.0,1889.1,0.8322]
[1746676216798,5.29172156,1889.8,1889.3,5.29281095]
[1746676216988,5.29172156,1889.8,1889.2,5.29308941]
[1746676217187,5.29172156,1889.8,1889.1,6.12559689]
[1746676217188,5.29203785,1889.7,1889.1,6.12559689]
[1746676217395,5.29203785,1889.7,1889.2,5.29322945]
[1746676218002,5.29215471,1889.6,1889.1,6.12557417]
[1746676218904,0.52917216,1889.8,1889.0,8.016]
[1746676219070,5.29285001,1889.4,1889.0,13.30980289]
[1746676219270,5.29285001,1889.4,1889.0,8.016]
[1746676219495,6.1073127,1889.7,1889.2,5.29307489]
[1746676219804,5.29213744,1889.6,1889.2,5.29307489]
[1746676220011,0.8153,1889.7,1889.0,9.34699684]
[1746676220012,5.29252843,1889.5,1889.0,9.34699684]
[1746676220221,5.29252843,1889.5,1889.0,13.30966657]
[1746676220222,5.29285952,1889.4,1889.0,13.30966657]
[1746676220387,5.29285952,1889.4,1889.0,8.016]
[1746676221115,5.29285952,1889.4,1888.6,5.29475166]
[1746676221116,5.29399605,1889.0,1888.6,5.29475166]
[1746676221319,0.7971,1889.1,1888.5,0.7909]
[1746676221489,5.29421118,1888.9,1888.3,5.29554055]
[1746676221688,5.29421118,1888.9,1888.5,5.29503646]
[1746676221897,5.29421118,1888.9,1888.4,5.29535526]
[1746676222118,5.29467116,1888.7,1888.3,5.90429864]
[1746676222296,5.29467116,1888.7,1888.1,8.015]
[1746676222297,5.29510347,1888.6,1888.1,8.015]
[1746676222507,5.29515196,1888.6,1888.1,13.31119343]
[1746676222887,5.29514965,1888.6,1888.1,13.31119343]
[1746676223082,5.29514965,1888.6,1888.1,18.60733166]
[1746676223403,5.29502571,1888.6,1888.1,8.015]
[1746676223811,5.29502571,1888.6,1888.2,5.29599505]
[1746676223999,5.29532323,1888.5,1888.1,8.015]
[1746676224198,0.7586,1888.7,1887.8,0.7845]
[1746676224199,5.29492745,1888.6,1887.8,6.08165167]
[1746676224417,5.29610318,1888.2,1887.8,6.08165167]
[1746676224733,5.29530975,1888.5,1888.0,10.59292004]
[1746676224893,6.05327766,1888.7,1887.8,6.08158355]
[1746676225096,5.29605606,1888.2,1887.8,0.7845]
[1746676225422,0.7586,1888.7,1887.8,0.83746693]
[1746676225645,0.7586,1888.7,1887.9,5.29667795]
[1746676225937,5.29503636,1888.6,1888.1,5.29609112]
[1746676226102,5.29503636,1888.6,1888.2,5.29603105]
[1746676226303,6.05333643,1888.7,1888.3,5.29575513]
[1746676226533,0.7586,1888.7,1888.3,5.29565966]
[1746676226702,0.7578,1889.2,1888.4,0.8209]
[1746676226904,5.29370875,1889.1,1888.6,5.29473811]
[1746676227114,5.29391484,1889.0,1888.6,5.29473811]
[1746676227318,5.29423264,1888.9,1888.4,6.11625805]
[1746676227523,5.29423264,1888.9,1888.5,5.29518608]
[1746676227834,6.05117072,1889.2,1888.7,5.29440709]
[1746676227990,5.29337072,1889.2,1888.7,5.29440709]
[1746676228192,6.09934412,1889.5,1889.0,5.29368384]
[1746676228389,5.29227136,1889.6,1889.2,5.29306514]
[1746676228604,5.29227136,1889.6,1889.1,6.11267097]
[1746676229003,5.29310768,1889.3,1888.8,0.8193]
[1746676229335,5.29212531,1889.6,1888.8,0.8193]
[1746676229517,5.29240539,1889.5,1888.8,6.11359075]
[1746676229719,5.2942185,1888.9,1888.5,0.8193]
[1746676230037,0.8067,1889.2,1888.2,8.7153]
[1746676230241,5.29431062,1888.9,1888.5,5.29505583]
[1746676230547,5.29352601,1889.1,1888.2,8.7153]
[1746676230730,5.29477596,1888.7,1888.2,14.01111967]
[1746676230903,5.29415759,1888.9,1888.2,8.7153]
[1746676231257,5.29571905,1888.4,1888.1,19.075]
[1746676231546,5.29594463,1888.3,1887.9,0.822]
[1746676231707,5.29649802,1888.1,1887.6,5.29759196]
[1746676231909,5.29619384,1888.2,1888.0,0.16371036]
[1746676232149,5.29609284,1888.2,1888.0,0.16371036]
[1746676232313,0.825,1888.3,1887.7,5.29722954]
[1746676232508,5.2955929,1888.4,1888.1,0.22732314]
[1746676232722,5.2955929,1888.4,1887.6,14.36758169]
[1746676232929,5.2960059,1888.3,1888.2,0.22732314]
[1746676233128,5.29551245,1888.4,1887.5,0.7644]
[1746676233421,5.29551245,1888.4,1887.3,19.075]
[1746676233422,5.29700122,1887.9,1887.3,19.075]
[1746676233821,5.29700122,1887.9,1887.3,24.37338798]
[1746676234020,5.29700122,1887.9,1887.4,5.29829171]
[1746676234249,5.29718174,1887.8,1887.3,24.37342867]
[1746676234446,5.2970191,1887.9,1887.4,5.298266]
[1746676234819,0.7701,1888.1,1887.3,19.075]
[1746676235053,5.29597332,1888.3,1887.4,3.57014809]
[1746676235250,0.7519,1888.4,1887.8,6.07118453]
[1746676235251,6.04754682,1888.4,1887.8,6.07118453]
[1746676235452,5.29589824,1888.3,1887.8,6.07100154]
[1746676235765,5.29589824,1888.3,1887.8,11.36795059]
[1746676236065,5.29589824,1888.3,1887.9,5.29686537]
[1746676236570,6.04754426,1888.4,1887.9,5.29686537]
[1746676237567,9.68558659,1889.0,1888.0,0.52968654]
[1746676237568,0.7783,1888.8,1888.0,0.52968654]
[1746676237736,5.29484645,1888.7,1888.2,5.29591718]
[1746676238435,5.29520347,1888.6,1888.1,5.29632964]
[1746676238628,5.29533886,1888.5,1888.1,5.29623904]
[1746676238864,0.7783,1888.8,1887.9,13.74374242]
[1746676238865,5.29555248,1888.4,1887.9,13.74374242]
[1746676239076,5.29555248,1888.4,1887.4,3.75206947]
[1746676239077,0.8133,1888.3,1887.4,3.75206947]
[1746676239237,6.10922878,1888.3,1887.8,5.29703908]
[1746676239563,6.10922878,1888.3,1887.6,5.29756943]
[1746676239564,5.29651864,1888.1,1887.6,5.29756943]
[1746676239766,0.8133,1888.3,1887.7,0.55]
[1746676240060,3.7968,1888.7,1887.8,5.84715487]
[1746676240227,5.29595835,1888.3,1887.8,5.50913408]
[1746676240433,5.29522282,1888.5,1888.0,5.29656183]
[1746676240645,5.29502308,1888.6,1888.1,5.29618406]
[1746676240865,6.0915593,1888.7,1888.2,5.29587325]
[1746676241074,6.0915593,1888.7,1888.2,5.50819965]
[1746676241075,5.29503064,1888.6,1888.2,5.50819965]
[1746676241231,5.2952247,1888.5,1888.2,0.21216433]
[1746676241662,5.29508511,1888.6,1888.2,0.21216433]
[1746676241865,5.29508511,1888.6,1888.2,5.5081979]
[1746676242073,6.09160463,1888.7,1888.2,5.50801297]
[1746676242257,5.29505138,1888.6,1888.2,0.21216433]
[1746676242586,5.29509058,1888.6,1888.2,5.50821214]
[1746676242731,5.29532639,1888.5,1888.2,0.21216433]
[1746676242929,5.29555526,1888.4,1888.2,0.21216433]
[1746676243159,5.29569813,1888.4,1888.2,0.21216433]
[1746676243467,5.29569813,1888.4,1888.3,0.21216433]
[1746676243762,0.7968,1888.7,1888.3,0.21216433]
[1746676243929,5.29532403,1888.5,1888.0,5.29646094]
[1746676244263,5.29593739,1888.3,1887.9,6.60953161]
[1746676244429,5.29530777,1888.5,1888.1,0.21184804]
[1746676244630,5.29530777,1888.5,1888.0,5.29650199]
[1746676244831,5.29552922,1888.4,1888.2,0.21184804]
[1746676245036,5.29569626,1888.4,1887.9,0.7628]
[1746676245241,5.29532484,1888.5,1888.3,0.21184804]
[1746676245443,5.29532484,1888.5,1888.1,5.2962089]
[1746676245638,5.29532484,1888.5,1888.4,0.21184804]
[1746676245950,5.29532484,1888.5,1888.1,5.29632935]
[1746676246152,5.29532484,1888.5,1888.1,5.29609867]
[1746676246362,5.29509645,1888.6,1888.2,0.21184804]
[1746676246655,10.59029916,1888.6,1888.2,0.21184804]
[1746676246867,5.29509645,1888.6,1888.2,5.50779759]
[1746676247371,10.59025728,1888.6,1888.2,5.50785308]
[1746676247575,5.29509645,1888.6,1888.2,5.50785308]
[1746676248077,10.59026826,1888.6,1888.2,5.50785308]
[1746676248244,5.29509645,1888.6,1888.2,5.50785308]
[1746676248443,5.29522101,1888.5,1888.2,0.21184804]
[1746676248642,5.29507873,1888.6,1888.2,0.21184804]
[1746676248837,0.7968,1888.7,1888.2,0.21184804]
[1746676249075,5.2955901,1888.4,1888.0,5.29639687]
[1746676249243,5.29480284,1888.7,1888.3,5.50533489]
[1746676249443,5.29497805,1888.6,1888.2,5.29592874]
[1746676249757,5.29520783,1888.5,1887.9,6.05956469]
[1746676249955,5.29561021,1888.4,1888.1,0.55]
[1746676250176,5.2953072,1888.5,1888.1,5.84632121]
[1746676250472,5.29554183,1888.4,1888.2,0.20958139]
[1746676250875,5.29618464,1888.2,1887.5,0.7645]
[1746676251075,5.29576868,1888.3,1887.5,0.81747248]
[1746676251278,10.59365026,1888.0,1887.5,6.06236104]
[1746676251474,5.29690212,1887.9,1887.5,6.0623361]
[1746676251684,5.29713136,1887.9,1887.5,0.7645]
[1746676251963,5.2974767,1887.7,1887.5,0.7645]
[1746676252193,5.29736726,1887.8,1887.5,0.7645]
[1746676253081,5.29736726,1887.8,1887.4,5.29827433]
[1746676253082,5.29671827,1888.0,1887.4,0.55]
[1746676253278,5.29690364,1887.9,1887.4,5.84818069]
[1746676253483,0.60970687,1888.3,1887.4,3.11888807]
[1746676253831,5.29699485,1887.9,1887.5,5.29798226]
[1746676253993,5.29677765,1888.0,1887.5,10.59576739]
[1746676254305,5.29690263,1887.9,1887.4,8.41707744]
[1746676254478,5.29732601,1887.8,1887.4,8.41707744]
[1746676255114,5.2974842,1887.7,1887.3,25.13920622]
[1746676255320,5.2974842,1887.7,1887.5,0.19383894]
[1746676255485,0.7606,1887.9,1887.3,19.8407]
[1746676255690,5.29760511,1887.7,1887.6,0.19383894]
[1746676255898,5.29788881,1887.6,1887.3,19.8407]
[1746676256721,5.29786278,1887.6,1887.3,19.8407]
[1746676256922,0.8227,1888.1,1887.4,0.55]
[1746676257099,5.296896,1887.9,1887.5,5.29789709]
[1746676257493,5.296896,1887.9,1887.5,5.29778264]
[1746676257724,5.2969872,1887.9,1887.4,5.29828133]
[1746676257919,5.2969872,1887.9,1887.5,5.29787561]
[1746676258219,0.8142,1888.4,1887.5,1.08508539]
[1746676258429,5.29654962,1888.1,1887.6,5.2975307]
[1746676258612,5.29508405,1888.6,1888.2,0.55]
[1746676258812,0.8142,1888.8,1888.2,0.7528]
[1746676258983,5.29534271,1888.5,1888.2,0.7528]
[1746676259189,5.29501495,1888.6,1888.2,0.7528]
[1746676259190,5.29550702,1888.4,1888.2,0.7528]
[1746676259922,5.29550702,1888.4,1887.9,5.84671515]
[1746676259923,5.29589583,1888.3,1888.0,0.55]
[1746676260529,5.29589583,1888.3,1887.9,6.04968298]
[1746676260696,5.29589583,1888.3,1887.9,0.7528]
[1746676260893,5.2961934,1888.2,1887.9,0.7528]
[1746676261295,5.29638756,1888.1,1887.9,0.7528]
[1746676261500,5.29638756,1888.1,1887.7,5.84742283]
[1746676261813,5.29581925,1888.3,1888.0,0.7746]
[1746676262392,5.29560165,1888.4,1888.0,6.07120651]
[1746676262597,5.29560875,1888.4,1888.1,0.55]
[1746676262797,5.29537683,1888.5,1888.1,0.55]
[1746676262798,5.29582497,1888.3,1888.1,0.55]
[1746676262996,7.702,1888.8,1888.0,0.7746]
[1746676263221,7.702,1888.8,1888.0,6.07118282]
[1746676263222,5.29559473,1888.4,1888.0,6.07118282]
[1746676263536,5.29577183,1888.3,1887.9,5.29688288]
[1746676263828,5.29577183,1888.3,1887.8,6.62813041]
[1746676263829,5.29577183,1888.3,1887.8,6.62806977]
[1746676264024,5.29499556,1888.6,1887.8,6.62806977]
[1746676264335,5.29647142,1888.1,1887.8,1.3311]
[1746676264711,5.29621788,1888.2,1887.8,6.68109504]
[1746676265144,5.29621788,1888.2,1887.8,7.82596227]
[1746676265654,5.29575359,1888.4,1887.8,7.82596227]
[1746676265655,5.29588542,1888.3,1887.9,5.29688202]
[1746676266126,5.29588542,1888.3,1887.9,5.34984459]
[1746676266324,7.702,1888.8,1887.9,5.34984459]
[1746676266325,0.79,1888.9,1888.3,5.29563018]
[1746676266513,5.29537349,1888.5,1888.2,0.55]
[1746676266715,5.29562429,1888.4,1888.2,0.55]
[1746676266924,0.79,1888.9,1888.1,8.4631]
[1746676266925,5.29604914,1888.2,1888.1,7.702]
[1746676267222,5.29661016,1888.0,1887.8,0.7803]
[1746676268154,5.29644457,1888.1,1887.8,0.7803]
[1746676268520,5.29664924,1888.0,1887.8,0.7803]
[1746676269041,5.2965136,1888.1,1887.8,0.7803]
[1746676269433,5.29677293,1888.0,1887.8,0.7803]
[1746676269863,5.29689072,1887.9,1887.8,0.7803]
[1746676270022,5.29576868,1888.3,1887.8,0.7803]
[1746676270218,5.90520524,1888.3,1887.8,0.7803]
[1746676270423,5.29621127,1888.2,1887.8,0.7803]
[1746676270626,5.29621127,1888.2,1887.8,6.07735542]
[1746676270819,5.2958881,1888.3,1887.9,5.8998273]
[1746676271142,5.29566355,1888.4,1887.9,5.89963132]
[1746676271454,5.29580534,1888.3,1887.9,5.89963132]
[1746676271757,5.29558709,1888.4,1888.0,5.84657111]
[1746676271955,7.702,1888.8,1888.2,0.55]
[1746676271956,5.29515204,1888.6,1888.2,0.55]
[1746676272160,5.29521359,1888.5,1888.3,0.818]
[1746676272363,5.29538985,1888.5,1888.3,0.818]
[1746676273347,5.29610706,1888.2,1888.0,6.898]
[1746676273550,5.29632964,1888.1,1888.0,6.898]
[1746676273825,5.29632964,1888.1,1888.0,0.818]
[1746676274647,1.87543314,1888.5,1887.7,8.251]
[1746676274648,1.87543314,1888.5,1887.8,0.60296378]
[1746676274837,5.29598092,1888.3,1888.0,0.55]
[1746676275229,3.8164,1888.8,1887.8,0.55]
[1746676275230,5.2952419,1888.5,1887.8,0.55]
[1746676275470,5.29632244,1888.2,1887.8,0.55]
[1746676275667,5.29596977,1888.3,1887.9,0.05295924]
[1746676276043,5.29596977,1888.3,1888.0,0.55]
[1746676276576,5.29601232,1888.3,1888.0,0.55]
[1746676276977,5.29632964,1888.1,1887.8,0.55]
[1746676277157,5.29632964,1888.1,1887.8,8.10723709]
[1746676277470,5.29689072,1887.9,1887.8,6.08]
[1746676277644,5.29717131,1887.8,1887.7,0.8206]
[1746676277974,5.29773257,1887.6,1887.5,0.8028]
[1746676278359,5.29857468,1887.3,1887.2,0.7875]
[1746676278671,5.29857468,1887.3,1886.9,19.86817246]
[1746676278873,5.29857468,1887.3,1886.9,0.7875]
[1746676278874,5.29913624,1887.1,1886.9,0.7875]
[1746676279249,5.29913624,1887.1,1886.5,8.4913]
[1746676280426,6.43583537,1887.1,1886.4,25.50646236]
[1746676280574,6.43583537,1887.1,1886.4,6.42546236]
[1746676280774,6.43583537,1887.1,1886.4,6.4784684]
[1746676280775,5.29913624,1887.1,1886.4,6.4784684]
[1746676281185,5.29913624,1887.1,1886.4,6.42546236]
[1746676281381,5.29913624,1887.1,1886.4,0.76507187]
[1746676281703,5.29913624,1887.1,1886.4,0.81807452]
[1746676281906,5.29913624,1887.1,1886.5,5.30069985]
[1746676282217,5.29913624,1887.1,1887.0,0.85145837]
[1746676284619,5.29871851,1887.3,1887.0,0.85145837]
[1746676284973,5.29909102,1887.2,1887.0,0.85145837]
[1746676285477,5.29913624,1887.1,1887.0,0.85145837]
[1746676286525,6.35894483,1887.1,1887.0,0.85145837]
[1746676286677,7.13844483,1887.1,1887.0,0.85145837]
[1746676287812,5.29913624,1887.1,1887.0,0.85145837]
[1746676288379,5.29849361,1887.4,1887.0,0.85145837]
[1746676289117,5.29787732,1887.6,1887.1,5.90207217]
[1746676289271,5.29760569,1887.7,1887.3,1.3221]
[1746676289473,5.70003691,1888.0,1887.3,1.3221]
[1746676289685,5.29829394,1887.4,1887.3,1.3221]
[1746676289900,5.29802112,1887.5,1887.4,0.16128664]
[1746676290112,5.29900762,1887.2,1887.0,7.56376208]
[1746676290290,5.29907268,1887.2,1887.0,7.56376208]
[1746676290616,5.29874711,1887.3,1887.0,7.56376208]
[1746676290797,5.29888928,1887.2,1887.0,7.56376208]
[1746676291306,3.0,1887.8,1887.0,7.56376208]
[1746676291307,5.29814844,1887.5,1887.1,0.55]
[1746676291483,5.29814844,1887.5,1887.1,5.84911501]
[1746676291896,5.29907428,1887.2,1887.0,9.08873829]
[1746676292088,5.29907428,1887.2,1887.0,7.56376208]
[1746676292703,5.29913624,1887.1,1887.0,7.56376208]
[1746676292908,5.29913624,1887.1,1887.0,0.71166208]
[1746676294014,8.29913624,1887.1,1887.0,0.71166208]
[1746676294901,5.29913624,1887.1,1887.0,0.71166208]
[1746676295478,5.29913624,1887.1,1887.0,0.85788103]
[1746676295685,5.29913624,1887.1,1887.0,0.71166208]
[1746676295982,5.2988815,1887.2,1887.0,0.85788103]
[1746676296179,5.29913624,1887.1,1887.0,0.85788103]
[1746676296612,5.29913624,1887.1,1887.0,0.71166208]
[1746676296816,5.29913624,1887.1,1887.0,0.85788103]
[1746676297022,5.29913624,1887.1,1887.0,0.71166208]
[1746676297600,5.29913624,1887.1,1887.0,0.85788103]
[1746676298000,9.09523624,1887.1,1887.0,0.71166208]
[1746676298323,5.2999788,1886.8,1886.7,0.73836697]
[1746676298494,9.0960788,1886.8,1886.7,0.73836697]
[1746676299479,9.0960788,1886.8,1886.7,0.46147935]
[1746676300387,5.29979534,1886.9,1886.7,0.46147935]
[1746676300591,5.29960579,1887.0,1886.7,0.46147935]
[1746676300799,5.29960579,1887.0,1886.8,0.14937136]